Workbook

Sheet Test
A1: Type | B1: DDA1V | C1: DDC | D1: A2A2V | E1: DA2S | F1: A2A2A1V | G1: DA2V | H1: CA2V | I1: DA1S | J1: A1UU
A2: 1000
A3: 2000
A4: 3000
A5: 4000 | L5: Придётся подождать пару минут.
A6: 5000 | L6: Если хотите снять ограничение в 5000 элементов, то правьте массив Sizes в коде.
A7: 10000 | L7: Все циклы от 1000 до 70000 обычно занимают около 40 минут.
A8: 20000
A9: 30000
A10: 40000
A11: 50000
A12: 60000
A13: 70000

Sheet Analize
B2: Структура | C2: Лаконичность | D2: Понят ность | E2: Затраты памяти | F2: Ско рость | H2: Время | I2: Память
B3: DDA1V | C3: 1 | D3: 1 | E3: 3 | F3: 1 | H3: 1 | I3: 3.20083764
B4: DDC | C4: 1 | D4: 1 | E4: 3 | F4: 1 | H4: 1.025502172 | I4: 3.217315491
B5: A2A2V | C5: 3 | D5: 2 | E5: 2 | F5: 1 | H5: 1.679743089 | I5: 2.216271384
B6: DA2S | C6: 3 | D6: 2 | E6: 2 | F6: 2 | H6: 2.475410868 | I6: 1.293526376
B7: A2A2A1V | C7: 3 | D7: 3 | E7: 1 | F7: 2 | H7: 2.720042818 | I7: 1
B8: DA2V | C8: 2 | D8: 2 | E8: 2 | F8: 3 | H8: 4.960707764 | I8: 2.199808186
B9: CA2V | C9: 2 | D9: 2 | E9: 2 | F9: 3 | H9: 5.315282413 | I9: 2.191561728
B10: DA1S | C10: 2 | D10: 2 | E10: 1 | F10: 3 | H10: 5.843775581 | I10: 1.021641833
B11: A1UU | C11: 3 | D11: 3 | E11: 1 | F11: 3 | H11: 14.27202317 | I11: 1.19876402

Sheet Comparison
B2: Type | C2: DDA1V | D2: DDC | E2: A2A2V | F2: DA2S | G2: A2A2A1V | H2: DA2V | I2: CA2V | J2: DA1S | K2: A1UU
B3: 1000 | C3: 172 | D3: 156 | E3: 281 | F3: 483 | G3: 468 | H3: 983 | I3: 1123 | J3: 1108 | K3: 78
B4: 2000 | C4: 312 | D4: 312 | E4: 624 | F4: 982 | G4: 968 | H4: 1950 | I4: 2246 | J4: 2059 | K4: 234
B5: 3000 | C5: 484 | D5: 484 | E5: 936 | F5: 1513 | G5: 1513 | H5: 2980 | I5: 3416 | J5: 2902 | K5: 452
B6: 4000 | C6: 624 | D6: 655 | E6: 1294 | F6: 1966 | G6: 2090 | H6: 3978 | I6: 4571 | J6: 4306 | K6: 749
B7: 5000 | C7: 796 | D7: 812 | E7: 1607 | F7: 2480 | G7: 2636 | H7: 4977 | I7: 5787 | J7: 5897 | K7: 1154
B8: 10000 | C8: 1622 | D8: 1700 | E8: 3401 | F8: 4961 | G8: 5475 | H8: 10078 | I8: 12667 | J8: 13105 | K8: 4430
B9: 20000 | C9: 3542 | D9: 4477 | E9: 7082 | F9: 10514 | G9: 12059 | H9: 22043 | I9: 30545 | J9: 27488 | K9: 21996
B10: 30000 | C10: 6006 | D10: 5662 | E10: 10983 | F10: 15522 | G10: 17690 | H10: 31341 | I10: 35677 | J10: 30265 | K10: 39359
B11: 40000 | C11: 7785 | D11: 8018 | E11: 14695 | F11: 21060 | G11: 23743 | H11: 42495 | I11: 47596 | J11: 40623 | K11: 71355
B12: 50000 | C12: 10218 | D12: 10483 | E12: 18735 | F12: 26895 | G12: 30264 | H12: 53743 | I12: 59826 | J12: 58064 | K12: 113179
B13: 60000 | C13: 12995 | D13: 13322 | E13: 22511 | F13: 32698 | G13: 36223 | H13: 65614 | I13: 71651 | J13: 75786 | K13: 164410
B14: 70000 | C14: 15881 | D14: 16286 | E14: 26676 | F14: 39312 | G14: 43197 | H14: 78781 | I14: 84412 | J14: 92805 | K14: 226654

Sheet Structures
E3: DDA1V | F3: DDC | G3: A2A2V | H3: DA2S | I3: A2A2A1V | J3: DA2V | K3: CA2V | L3: DA1S | M3: A1UU
D4: L1 | E4: Dictionary | F4: Dictionary | G4: Array 2D | H4: Dictionary | I4: Array 2D | J4: Dictionary | K4: Collection | L4: Dictionary | M4: Array 2D
D5: L2 | E5: Dictionary | F5: Dictionary | G5: Array 2D | H5: Array 2D | I5: Array 2D | J5: Array 2D | K5: Array 2D | L5: Array 1D | M5: UDT
D6: L3 | E6: Array 1D | F6: Class | H6: String | I6: Array 1D | L6: String | M6: UDT

Sheet MemUsage
B1: N= | C1: 70000 | F1: M= | G1: 20
B3: DA1S | H3: =SUM(I6:I8) -> 69441024 | L3: DDA1V | M3: DDC | N3: A2A2V | O3: DA2S | P3: A2A2A1V | Q3: DA2V | R3: CA2V | S3: DA1S | T3: A1UU
B4: Level | C4: Type | D4: Structures | E4: Elements, Items | F4: Structure | G4: Element | I4: Total | K4: 1000 | L4: 3109024 | M4: 3125024 | N4: 2152028 | O4: 1257024 | P4: 971028 | Q4: 2137024 | R4: 2128512 | S4: 993024 | T4: 1160024
F5: Overhead | G5: Overhead | H5: Data | K5: 2000 | L5: 6217024 | M5: 6249024 | N5: 4304028 | O5: 2513024 | P5: 1942028 | Q5: 4273024 | R5: 4256512 | S5: 1985024 | T5: 2320024
B6: L1 | C6: Dictionary | D6: 1 | E6: =CountL1 -> 70000 | F6: 1024 | G6: 16 | H6: 12 | I6: =(E6*(G6+H6)+F6)*D6 -> 1961024 | K6: 3000 | L6: 9325024 | M6: 9373024 | N6: 6456028 | O6: 3769024 | P6: 2913028 | Q6: 6409024 | R6: 6384512 | S6: 2977024 | T6: 3480024
B7: L2 | C7: Array D1 | D7: =CountL1 -> 70000 | E7: =CountL2 -> 20 | F7: 24 | G7: 0 | H7: 4 | I7: =(E7*(G7+H7)+F7)*D7 -> 7280000 | K7: 4000 | L7: 12433024 | M7: 12497024 | N7: 8608028 | O7: 5025024 | P7: 3884028 | Q7: 8545024 | R7: 8512512 | S7: 3969024 | T7: 4640024
B8: L3 | C8: String | D8: =CountL1 -> 70000 | E8: =CountL2 -> 20 | F8: 0 | G8: 10 | H8: 33 | I8: =(E8*(G8+H8)+F8)*D8 -> 60200000 | K8: 5000 | L8: 15541024 | M8: 15621024 | N8: 10760028 | O8: 6281024 | P8: 4855028 | Q8: 10681024 | R8: 10640512 | S8: 4961024 | T8: 5800024
K9: 10000 | L9: 31081024 | M9: 31241024 | N9: 21520028 | O9: 12561024 | P9: 9710028 | Q9: 21361024 | R9: 21280512 | S9: 9921024 | T9: 11600024
B10: DA2S | H10: =SUM(I13:I15) -> 87921024 | K10: 20000 | L10: 62161024 | M10: 62481024 | N10: 43040028 | O10: 25121024 | P10: 19420028 | Q10: 42721024 | R10: 42560512 | S10: 19841024 | T10: 23200024
B11: Level | C11: Type | D11: Structures | E11: Elements, Items | F11: Structure | G11: Element | I11: Total | K11: 30000 | L11: 93241024 | M11: 93721024 | N11: 64560028 | O11: 37681024 | P11: 29130028 | Q11: 64081024 | R11: 63840512 | S11: 29761024 | T11: 34800024
F12: Overhead | G12: Overhead | H12: Data | K12: 40000 | L12: 124321024 | M12: 124961024 | N12: 86080028 | O12: 50241024 | P12: 38840028 | Q12: 85441024 | R12: 85120512 | S12: 39681024 | T12: 46400024
B13: L1 | C13: Dictionary | D13: 1 | E13: =CountL1 -> 70000 | F13: 1024 | G13: 16 | H13: 12 | I13: =(E13*(G13+H13)+F13)*D13 -> 1961024 | K13: 50000 | L13: 155401024 | M13: 156201024 | N13: 107600028 | O13: 62801024 | P13: 48550028 | Q13: 106801024 | R13: 106400512 | S13: 49601024 | T13: 58000024
B14: L2 | C14: Array D2 | D14: =CountL1 -> 70000 | E14: =CountL2*2 -> 40 | F14: 28 | G14: 0 | H14: 4 | I14: =(E14*(G14+H14)+F14)*D14 -> 13160000 | K14: 60000 | L14: 186481024 | M14: 187441024 | N14: 129120028 | O14: 75361024 | P14: 58260028 | Q14: 128161024 | R14: 127680512 | S14: 59521024 | T14: 69600024
B15: L3 | C15: String | D15: =CountL1 -> 70000 | E15: =CountL2*2 -> 40 | F15: 0 | G15: 10 | H15: 16 | I15: =(E15*(G15+H15)+F15)*D15 -> 72800000 | K15: 70000 | L15: 217561024 | M15: 218681024 | N15: 150640028 | O15: 87921024 | P15: 67970028 | Q15: 149521024 | R15: 148960512 | S15: 69441024 | T15: 81200024
B17: DDA1V | H17: =SUM(I20:I22) -> 217561024 | L17: =$H$17 -> 217561024 | M17: =$H$59 -> 218681024 | N17: =$H$24 -> 150640028 | O17: =$H$10 -> 87921024 | P17: =$H$31 -> 67970028 | Q17: =$H$38 -> 149521024 | R17: =$H$45 -> 148960512 | S17: =$H$3 -> 69441024 | T17: =$H$52 -> 81480024
B18: Level | C18: Type | D18: Structures | E18: Elements, Items | F18: Structure | G18: Element | I18: Total
F19: Overhead | G19: Overhead | H19: Data | L19: Это примерные затраты памяти. Точными инструментами контроля памяти VBA не располагает, поэтому тут есть известная доля моей фантазии и здравого смысла.
B20: L1 | C20: Dictionary | D20: 1 | E20: =CountL1 -> 70000 | F20: 1024 | G20: 16 | H20: 4 | I20: =(E20*(G20+H20)+F20)*D20 -> 1401024
B21: L2 | C21: Dictionary | D21: =CountL1 -> 70000 | E21: =CountL2 -> 20 | F21: 1024 | G21: 16 | H21: 12 | I21: =(E21*(G21+H21)+F21)*D21 -> 110880000
B22: L3 | C22: Array D1 | D22: =CountL1 -> 70000 | E22: =CountL2 -> 20 | F22: 24 | G22: 54 | H22: 20 | I22: =(E22*(G22+H22)+F22)*D22 -> 105280000
B24: A2A2V | H24: =SUM(I27:I29) -> 150640028
B25: Level | C25: Type | D25: Structures | E25: Elements, Items | F25: Structure | G25: Element | I25: Total
F26: Overhead | G26: Overhead | H26: Data
B27: L1 | C27: Array D2 | D27: 1 | E27: =CountL1*2 -> 140000 | F27: 28 | G27: 17 | H27: 5 | I27: =(E27*(G27+H27)+F27)*D27 -> 3080028
B28: L2 | C28: Array D2 | D28: =CountL1 -> 70000 | E28: =CountL2*4 -> 80 | F28: 28 | G28: 19 | H28: 7 | I28: =(E28*(G28+H28)+F28)*D28 -> 147560000
B29: L3 | I29: =(E29*(G29+H29)+F29)*D29 -> 0
B31: A2A2A1V | H31: =SUM(I34:I36) -> 67970028
B32: Level | C32: Type | D32: Structures | E32: Elements, Items | F32: Structure | G32: Element | I32: Total
F33: Overhead | G33: Overhead | H33: Data
B34: L1 | C34: Array D2 | D34: 1 | E34: =CountL1*2 -> 140000 | F34: 28 | G34: 17 | H34: 5 | I34: =(E34*(G34+H34)+F34)*D34 -> 3080028
B35: L2 | C35: Array D2 | D35: =CountL1 -> 70000 | E35: =CountL2*2 -> 40 | F35: 28 | G35: 17 | H35: 3 | I35: =(E35*(G35+H35)+F35)*D35 -> 57960000
B36: L3 | C36: Array D1 | D36: =CountL1 -> 70000 | E36: 3 | F36: 24 | G36: 18 | H36: 7 | I36: =(E36*(G36+H36)+F36)*D36 -> 6930000
B38: DA2V | H38: =SUM(I41:I43) -> 149521024
B39: Level | C39: Type | D39: Structures | E39: Elements, Items | F39: Structure | G39: Element | I39: Total
F40: Overhead | G40: Overhead | H40: Data
B41: L1 | C41: Dictionary | D41: 1 | E41: =CountL1 -> 70000 | F41: 1024 | G41: 16 | H41: 12 | I41: =(E41*(G41+H41)+F41)*D41 -> 1961024
B42: L2 | C42: Array D2 | D42: =CountL1 -> 70000 | E42: =CountL2*4 -> 80 | F42: 28 | G42: 19 | H42: 7 | I42: =(E42*(G42+H42)+F42)*D42 -> 147560000
B43: L3 | I43: =(E43*(G43+H43)+F43)*D43 -> 0
B45: CA2V | H45: =SUM(I48:I50) -> 148960512
B46: Level | C46: Type | D46: Structures | E46: Elements, Items | F46: Structure | G46: Element | I46: Total
F47: Overhead | G47: Overhead | H47: Data
B48: L1 | C48: Collection | D48: 1 | E48: =CountL1 -> 70000 | F48: 512 | G48: 8 | H48: 12 | I48: =(E48*(G48+H48)+F48)*D48 -> 1400512
B49: L2 | C49: Array D2 | D49: =CountL1 -> 70000 | E49: =CountL2*4 -> 80 | F49: 28 | G49: 19 | H49: 7 | I49: =(E49*(G49+H49)+F49)*D49 -> 147560000
B50: L3 | I50: =(E50*(G50+H50)+F50)*D50 -> 0
B52: A1UU | H52: =SUM(I55:I57) -> 81480024
B53: Level | C53: Type | D53: Structures | E53: Elements, Items | F53: Structure | G53: Element | I53: Total
F54: Overhead | G54: Overhead | H54: Data
B55: L1 | C55: Array D1 | D55: 1 | E55: =CountL1 -> 70000 | F55: 24 | G55: 0 | H55: 4 | I55: =(E55*(G55+H55)+F55)*D55 -> 280024
B56: L2 | C56: UDT | D56: =CountL1 -> 70000 | E56: 20 | F56: 20 | G56: 20 | H56: 37 | I56: =(E56*(G56+H56)+F56)*D56 -> 81200000
B57: L3 | I57: =(E57*(G57+H57)+F57)*D57 -> 0
B59: DDC | H59: =SUM(I62:I64) -> 218681024
B60: Level | C60: Type | D60: Structures | E60: Elements, Items | F60: Structure | G60: Element | I60: Total
F61: Overhead | G61: Overhead | H61: Data
B62: L1 | C62: Dictionary | D62: 1 | E62: =CountL1 -> 70000 | F62: 1024 | G62: 16 | H62: 4 | I62: =(E62*(G62+H62)+F62)*D62 -> 1401024
B63: L2 | C63: Dictionary | D63: =CountL1 -> 70000 | E63: =CountL2 -> 20 | F63: 1024 | G63: 16 | H63: 4 | I63: =(E63*(G63+H63)+F63)*D63 -> 99680000
B64: L3 | C64: Class | D64: =CountL1*CountL2 -> 1400000 | E64: 1 | F64: 32 | G64: =10+10 -> 20 | H64: =20+8+4 -> 32 | I64: =(E64*(G64+H64)+F64)*D64 -> 117600000
